[Event "Mitropa Cup Open 2024"]
[Site "Apolda"]
[Date "2024.02.23"]
[Round "9.19"]
[White "Gnojek, Petr"]
[Black "Kollars, Dmitrij"]
[Result "0-1"]
[ECO "E51"]
[WhiteElo "2428"]
[BlackElo "2632"]
[Annotator "TA"]
[PlyCount "86"]
[EventDate "2024.02.15"]
[EventType "team-tourn"]
[EventCountry "GER"]
[SourceTitle "playchess.com"]
[Source "ChessBase"]
[SourceQuality "1"]
[WhiteTeam "Czech Republic"]
[BlackTeam "Germany"]
[WhiteTeamCountry "CZE"]
[BlackTeamCountry "GER"]
[TimeControl "40/5400+30:1800+30"]

{[%evp 13,86,0,8,11,0,-6,0,0,0,0,0,0,0,0,0,0,0,0,0,-14,7,0,20,13,15,10,35,29,50,-31,0,0,0,0,4,0,0,-10,-13,-62,-45,-72,-77,-146,-112,-128,-135,-137,-101,-283,-257,-277,-277,-285,-293,-312,-327,-433,-429,-506,-419,-530,-522,-516,-506,-570,-568,-615,-645,-602,-624,-593,-575,-1066,-644]} 1. d4 {[%emt 0:00:06]} Nf6 {[%emt 0:00:19]} 2. c4 {[%emt 0:00:07]} e6 {[%emt 0:00:03]} 3. Nc3 {[%emt 0:00:17]} Bb4 {[%emt 0:00:32]} 4. Nf3 {[%emt 0:00:47]} b6 {[%emt 0:00:35]} 5. Bd2 {[%emt 0:00:17]} O-O {[%emt 0:01:47]} 6. e3 {[%emt 0:00:28]} d5 {[%emt 0:00:05]} 7. cxd5 {[%emt 0:00:13]} exd5 {[%emt 0:00:13]} 8. Bd3 {[%emt 0:00:06]} Re8 {[%emt 0:00:58]} 9. Ne5 {[%emt 0:06:42]} Bd6 {[%emt 0:02:23]} 10. f4 {[%emt 0:00:21] The position is equal.} Ba6 {[%emt 0:01:50]} 11. Bxa6 {[%emt 0:04:34]} Nxa6 {[%emt 0:00:57]} 12. a3 {[%emt 0:00:17]} c5 {[%emt 0:01:34]} 13. O-O {[%emt 0:01:08]} Nc7 {[%emt 0:01:53]} 14. Be1 {[%emt 0:07:09]} cxd4 {[%emt 0:14:42]} 15. exd4 {[%emt 0:00:11]} Ne4 {[%emt 0:01:16]} 16. Qh5 {[%emt 0:11:47]} g6 {[%emt 0:05:10]} 17. Qh3 {[%emt 0:00:10][%cal Oe5f7] [#] And now Nxf7! would win.} f5 {[%emt 0:12:12]} (17... Nxc3 $5 18. bxc3 f5 $16) 18. Bh4 {[%emt 0:04:10]} Qc8 {[%emt 0:01:30]} 19. Rac1 {[%emt 0:07:39][%cal Oc3d5]} Qe6 {[%emt 0:00:48]} 20. Qd3 {[%emt 0:09:13]} Rec8 {[%emt 0:04:59]} 21. Nd1 {[%emt 0:01:01]} (21. Rc2 $1 $14) 21... Ne8 {[%emt 0:10:00]} 22. Ne3 {[%emt 0:00:14]} Rxc1 {[%emt 0:00:58]} 23. Rxc1 {[%emt 0:00:05]} Rc8 $1 $132 {[%emt 0:00:04][%mdl 2048] Black is fighting back} 24. Rxc8 {[%emt 0:07:22]} Qxc8 {[%emt 0:00:01]} 25. Qd1 {[%emt 0:00:05] Repels Qc1} Nc7 {[%emt 0:03:47]} 26. Qc2 {[%emt 0:03:52]} (26. Be1 $11 {is superior.}) 26... Bxe5 $15 {[%emt 0:03:49]} 27. dxe5 {[%emt 0:07:30]} Qd7 {[%emt 0:00:41]} 28. Qb3 {[%emt 0:06:28]} (28. g4 $142) 28... Qc6 {[%emt 0:08:03]} 29. h3 {[%emt 0:07:21]} Qc5 {[%emt 0:02:20][%cal Og6g5]} 30. Kh1 {[%emt 0:04:04]} Kf7 {[%emt 0:03:11]} 31. e6+ $2 {[%emt 0:04:16] Loses the game.} Kxe6 $19 {[%emt 0:01:59]} 32. Bd8 {[%emt 0:00:24]} Nb5 {[%emt 0:01:12] Strongly threatening ...Nd4.} 33. Kh2 {[%emt 0:00:47]} Nbd6 {[%emt 0:04:13] Hoping for ...Kd7.} 34. Bh4 {[%emt 0:02:10] White is weak on the light squares} Qd4 {[%emt 0:01:56] ...Nd2 would now be deadly. Active counter play!} 35. Nf1 {[%emt 0:02:46]} Nc5 {[%emt 0:02:24][%csl LRb3,LRf4]} 36. Qg3 {[%emt 0:00:52]} Nd3 {[%emt 0:01:27]} 37. Kh1 {[%emt 0:01:11]} Ne4 {[%emt 0:00:52] Against Qg5. Black is clearly winning.} (37... Nxf4 38. Qg5 Kd7 39. Qd8+ Kc6 40. Be7 $11) 38. Qf3 {[%emt 0:00:05]} Nxb2 {[%emt 0:00:42] Excellent horsemanship.} 39. g4 {[%emt 0:00:51]} Qd1 {[%emt 0:02:50]} 40. gxf5+ {[%emt 0:00:11]} gxf5 {[%emt 0:00:26]} 41. Qg2 {[%emt 0:30:41]} Kf7 {[%emt 0:31:18] [#] Threatens to win with ...Nd3.} 42. Kh2 {[%emt 0:01:39]} Nc4 {[%emt 0:02:39][%cal Od5d4]} 43. a4 {[%emt 0:00:00]} Ncd2 {[%emt 0:00:00] Weighted Error Value: White=0.46/Black=0.09 (flawless) .  Loses game:     	White=1     	---        Mistake:       	White=3     	---        Inaccurate:     	White=2     	Black=2      OK:         	White=6     	Black=16     Best:        	White=1     	Black=2      Strong:       	---       	Black=1} 0-1

[Event "Mitropa Cup Open 2024"]
[Site "Apolda"]
[Date "2024.02.23"]
[Round "9.20"]
[White "Svane, Frederik"]
[Black "Nemec, Jachym"]
[Result "1-0"]
[ECO "B11"]
[WhiteElo "2625"]
[BlackElo "2393"]
[Annotator "TA"]
[PlyCount "87"]
[EventDate "2024.02.15"]
[EventType "team-tourn"]
[EventCountry "GER"]
[SourceTitle "playchess.com"]
[Source "ChessBase"]
[SourceQuality "1"]
[WhiteTeam "Germany"]
[BlackTeam "Czech Republic"]
[WhiteTeamCountry "GER"]
[BlackTeamCountry "CZE"]
[TimeControl "40/5400+30:1800+30"]

{[%evp 9,87,0,7,-6,35,8,19,10,16,16,18,12,0,0,0,0,0,0,12,27,69,68,91,88,83,83,119,115,135,133,127,99,88,81,77,70,85,84,88,83,96,96,92,99,104,93,106,104,158,158,161,159,258,252,225,243,239,254,251,253,360,345,354,315,424,413,1073,759,1977,1694,29978,29977,29980,29981,29981,29982,29982,29983,29983,29984]} 1. e4 {[%emt 0:00:06]} c6 {[%emt 0:00:14]} 2. Nf3 {[%emt 0:00:08]} d5 {[%emt 0:00:06]} 3. Nc3 {[%emt 0:00:04]} Bg4 {[%emt 0:00:33]} 4. Be2 {[%emt 0:00:06]} e6 {[%emt 0:00:25]} 5. h3 {[%emt 0:00:06]} Bxf3 {[%emt 0:04:58]} 6. Bxf3 {[%emt 0:00:02]} Nf6 {[%emt 0:00:15]} 7. d3 {[%emt 0:06:33]} Bb4 {[%emt 0:03:13]} 8. O-O {[%emt 0:03:22] The position is equal.} Bxc3 {[%emt 0:09:15]} 9. bxc3 {[%emt 0:00:18]} dxe4 {[%emt 0:00:25]} 10. dxe4 {[%emt 0:00:01]} Qxd1 {[%emt 0:00:12]} 11. Rxd1 {[%emt 0:00:01][%cal Bf1d1,Bd1d4,Bd4c4][%mdl 32]} Nbd7 {[%emt 0:00:39][%cal Bb8d7,Bd7b6,Bb6d5,Bd5c3][%mdl 32]} 12. Bf4 {[%emt 0:05:53]} O-O-O {[%emt 0:03:56]} 13. Bd6 {[%emt 0:06:08][%cal Bf4d6,Bd6c5,Bc5a7,Ba7b6][%mdl 32]} Nb6 {[%emt 0:04:04]} 14. Rd4 $1 {[%emt 0:00:16] Prevents Nc4} Rd7 {[%emt 0:05:54]} 15. a4 {[%emt 0:08:08]} Rhd8 {[%emt 0:06:54]} 16. e5 {[%emt 0:18:18]} Ne8 {[%emt 0:07:28]} 17. Bc5 {[%emt 0:00:17] White has more active pieces. This pair of bishops is nice.} Nd5 {[%emt 0:04:10]} 18. Bxa7 {[%emt 0:17:18]} Nxc3 {[%emt 0:02:39]} 19. Rc4 {[%emt 0:00:23]} Nd5 {[%emt 0:00:23]} 20. a5 {[%emt 0:00:30]} Nec7 {[%emt 0:02:53]} 21. Rh4 {[%emt 0:01:26]} h6 {[%emt 0:02:56]} 22. Bb6 {[%emt 0:02:08]} Re8 {[%emt 0:02:08]} 23. g3 {[%emt 0:03:20]} Na6 {[%emt 0:01:35]} 24. Kg2 {[%emt 0:00:39]} Ndb4 {[%emt 0:01:38]} 25. Rc4 {[%emt 0:01:10] Black is weak on the dark squares} Nd5 {[%emt 0:04:32]} 26. h4 {[%emt 0:00:11]} g6 {[%emt 0:09:56]} 27. Ra3 {[%emt 0:00:25][%cal Ba1a3,Ba3f3,Bf3f7,Bf7g7,Bg7g6][%mdl 32]} h5 {[%emt 0:00:59]} 28. Be2 {[%emt 0:05:47]} Nb8 {[%emt 0:03:59]} (28... Ne7 $142) 29. Rf3 $16 {[%emt 0:03:24]} Nxb6 {[%emt 0:07:49]} 30. axb6 {[%emt 0:00:02]} Rd2 {[%emt 0:00:40] [#]} (30... Ree7 $16 {might work better.}) 31. Rxf7 $1 $18 {[%emt 0:08:27]} Nd7 {[%emt 0:00:04]} 32. Re4 {[%emt 0:00:06]} Rxc2 {[%emt 0:01:10] [#]} 33. Rg7 $1 {[%emt 0:00:58]} Nxb6 {[%emt 0:02:13]} 34. Rxg6 {[%emt 0:00:01]} Nd5 {[%emt 0:01:24]} (34... Rh8 $142 35. Rxe6 Nd5) 35. Bxh5 {[%emt 0:00:01]} b5 {[%emt 0:00:56]} 36. Bg4 {[%emt 0:01:27]} Kd7 {[%emt 0:00:38]} 37. h5 {[%emt 0:00:10]} b4 {[%emt 0:00:52]} (37... Rf8 $142 38. Bxe6+ (38. Rxe6 Rfxf2+ 39. Kg1 Rg2+ 40. Kf1 Rh2 $17) 38... Ke7) 38. h6 {[%emt 0:01:33] Rg7+ is the strong threat.} b3 {[%emt 0:00:04]} 39. Rg7+ {[%emt 0:02:33]} Kd8 {[%emt 0:01:11]} 40. h7 {[%emt 0:04:47] White mates.} b2 {[%emt 0:01:07]} 41. Rg8 {[%emt 0:30:56]} b1=Q {[%emt 0:30:55]} 42. Rxe8+ {[%emt 0:00:09]} Kxe8 {[%emt 0:00:12]} 43. h8=Q+ {[%emt 0:00:07]} (43. h8=R+ $2 {loses.} Kf7 44. Rh7+ Kf8 (44... Kg6 $2 45. Bxe6 $19) 45. Bxe6 Rxf2+ 46. Kxf2 Qxe4 $19) 43... Ke7 {[%emt 0:00:10]} 44. Qg7+ {[%emt 0:00:29] Weighted Error Value: White=0.03 (flawless) /Black=0.37.  Mistake:       	---       	Black=4      Inaccurate:     	White=1     	Black=5      OK:         	White=15    	Black=11     Best:        	White=1     	Black=4      Strong:       	White=3     	---} 1-0